Cogmind - Beta 12 @@@ ROGUE MODE // 2023.04.12 @ 08:31:29 Player: Mr Goldstein Result: Self-destructed Performance ------------- Evolutions (3) 1500 Regions Visited (4) 800 Robots Destroyed (0) 0 Value Destroyed (0) 0 Prototype IDs (0) 0 Alien Tech Used (0) 0 Bonus (834) 834 TOTAL SCORE: 3134 Bonus ------- Pacifist 834 Cogmind --------- Core Integrity 700/700 Matter 213/300 Energy 100/100 System Corruption 0% Temperature Cool (0) Movement Core (200) Ox3 Location -7/Factory Parts ------- > --- POWER (1) -------- (None) > --- PROPULSION (2) --- (None) > --- UTILITY (8) ------ Advanced Drone Bay (1/2) > --- WEAPON (2) ------- (None) > --- INVENTORY (5) ---- Light Deuterium Engine Datajack Great Maul Peak State ------------ > --- POWER ------------ (None) > --- PROPULSION ------- (None) > --- UTILITY ---------- Advanced Drone Bay > --- WEAPON ----------- (None) > --- INVENTORY -------- Light Deuterium Engine Datajack Great Maul [Rating: 12] Favorites ----------- Power None Propulsion None Utility Advanced Drone Bay Device Advanced Drone Bay Weapon None Build | -11 -10 -9 -8 -7 ------- Run | Jun Mat Mat Mat Fac Slots Evolved 6 | . . 2 2 2 Power . | . . . . . Propulsion . | . . . . . Utility 6 | . . 2 2 2 Weapon . | . . . . . Parts Attached 1 | . . . . 1 Power . | . . . . . Engine . | . . . . . Core . | . . . . . Reactor . | . . . . . Propulsion . | . . . . . Treads . | . . . . . Leg . | . . . . . Wheel . | . . . . . Hover . | . . . . . Flight . | . . . . . Utility 1 | . . . . 1 Device 1 | . . . . 1 Storage . | . . . . . Processor . | . . . . . Hackware . | . . . . . Protection . | . . . . . Artifact . | . . . . . Weapon . | . . . . . Energy Gun . | . . . . . Energy Cannon . | . . . . . Ballistic Gun . | . . . . . Ballistic Cannon . | . . . . . Launcher . | . . . . . Special Weapon . | . . . . . Impact Weapon . | . . . . . Slashing Weapon . | . . . . . Piercing Weapon . | . . . . . Special Melee Weapon . | . . . . . Unidentified Prototypes . | . . . . . Parts Lost . | . . . . . Power . | . . . . . Propulsion . | . . . . . Utility . | . . . . . Weapon . | . . . . . Highest Loss Streak . | . . . . . To Critical Strikes . | . . . . . Average Slot Usage (%) . | . . . . 2 Naked Turns 380 | . 65 97 123 95 Heaviest Build . | . . . . . Greatest Support 3 | 3 3 3 3 3 Greatest Overweight (x) . | . . . . . Average Overweight (x) . | . . . . . Largest Inventory Capacity 5 | 5 5 5 5 5 Average Capacity 5 | 5 5 5 5 5 Most Carried 5 | . . 1 3 5 Average Carried 1 | . . . 2 3 Final Capacity 5 | 5 5 5 5 5 Final Carried 3 | . . 1 3 3 Class Distribution -------------------- 100% | Mutant Dominant Class ---------------- Mutant | -10/Materials Mutant | -9/Materials Mutant | -8/Materials Mutant | -7/Factory Resources | -11 -10 -9 -8 -7 ----------- Run | Jun Mat Mat Mat Fac Matter Collected 57 | 57 . . . . Remotely . | . . . . . Salvage Created . | . . . . . Parts . | . . . . . Haulers Intercepted . | . . . . . Recyclers Shooed . | . . . . . Parts Field Recycled . | . . . . . Retrieved Matter . | . . . . . Parts Self-Destructed . | . . . . . Prevented . | . . . . . Kills | -11 -10 -9 -8 -7 ------- Run | Jun Mat Mat Mat Fac Combat Hostiles Destroyed . | . . . . . Classes Destroyed . | . . . . . Best Kill Streak . | . . . . . Combat Bots Only . | . . . . . Max Kills in Single Turn . | . . . . . Gunslinging . | . . . . . Exploded . | . . . . . Melee . | . . . . . Uniques/NPCs Destroyed . | . . . . . Combat | -11 -10 -9 -8 -7 -------- Run | Jun Mat Mat Mat Fac Damage Taken 966 | . 193 351 422 . Core 966 | . 193 351 422 . Absorbed by Shields . | . . . . . Core Remaining (%) 39 | 100 22 12 23 . Volleys Fired . | . . . . . Largest . | . . . . . Hottest . | . . . . . Shots Fired . | . . . . . Gun . | . . . . . Cannon . | . . . . . Launcher . | . . . . . Special . | . . . . . Kinetic . | . . . . . Thermal . | . . . . . Explosive . | . . . . . Electromagnetic . | . . . . . Robot Hit Streak . | . . . . . Robot Miss Streak . | . . . . . Penetration Max . | . . . . . Secondary Targets . | . . . . . Shots Hit Robots . | . . . . . Core Hits 2 | . 1 . 1 . Critical Kills . | . . . . . Critical Parts Destroyed . | . . . . . Critical Strikes . | . . . . . Melee Attacks . | . . . . . Impact . | . . . . . Slashing . | . . . . . Piercing . | . . . . . Sneak Attacks . | . . . . . Combat Hostiles . | . . . . . Follow-up Attacks . | . . . . . Damage Inflicted 89 | . 18 45 26 . Guns . | . . . . . Cannons . | . . . . . Explosions . | . . . . . Melee . | . . . . . Ramming 89 | . 18 45 26 . Kinetic . | . . . . . Thermal . | . . . . . Explosive . | . . . . . Electromagnetic . | . . . . . Impact . | . . . . . Slashing . | . . . . . Piercing . | . . . . . Highest Corruption 1 | . 1 . . . Average Corruption 1 | . 1 . . . Corruption Purged . | . . . . . Corruption Blocked . | . . . . . Overload Shots . | . . . . . Overflow Damage . | . . . . . Projectiles . | . . . . . Explosions . | . . . . . Melee . | . . . . . Knockbacks 3 | . 3 . . . Impact 3 | . 3 . . . Kinetic . | . . . . . Secondary . | . . . . . Self-Inflicted Damage 41 | . 8 22 11 . Shots . | . . . . . Rammed 19 | . 5 9 5 . Targets Rammed 19 | . 5 9 5 . Kicked . | . . . . . Crushed . | . . . . . Highest Temperature 2 | . 2 . . . Average Temperature 2 | . 2 . . . Received Heat Transfer 297 | . 120 42 135 . Siege Activations . | . . . . . Robots Corrupted . | . . . . . Combat Hostiles . | . . . . . Parts Fried . | . . . . . Impact Corruptions . | . . . . . Robots Melted . | . . . . . Combat Hostiles . | . . . . . Parts Melted . | . . . . . Heat Transferred . | . . . . . Parts Sabotaged . | . . . . . Parts Stolen . | . . . . . Parts Stripped . | . . . . . Power Chain Reactions . | . . . . . Missiles Intercepted . | . . . . . Alert | -11 -10 -9 -8 -7 ------- Run | Jun Mat Mat Mat Fac Peak Influence 188 | . 66 129 188 99 Initial 85 | . . 27 53 85 Average 76 | . 19 61 104 94 Maximum Alert Level . | . . . . . Low Security (%) 100 | 100 100 100 100 100 Level 1 . | . . . . . Level 2 . | . . . . . Level 3 . | . . . . . Level 4 . | . . . . . Level 5 . | . . . . . High Security . | . . . . . Max Security . | . . . . . Squads Dispatched 4 | . 3 1 . . Investigation 1 | . 1 . . . Extermination . | . . . . . Reinforcement 3 | . 2 1 . . Assault . | . . . . . Garrison . | . . . . . Intercept . | . . . . . Searches Triggered . | . . . . . Construction Impeded . | . . . . . Haulers Reinforced . | . . . . . Active Scanning Responses . | . . . . . Cargo Convoy Interrupts . | . . . . . Stealth | -11 -10 -9 -8 -7 --------- Run | Jun Mat Mat Mat Fac Distress Signals 1 | . . 1 . . Communications Jammed . | . . . . . Distress Signals . | . . . . . Times Spotted 37 | . 8 14 14 1 Peak Tracking Total 11 | . 7 11 11 1 Tactical Retreats 3 | . 1 1 1 . Traps | -11 -10 -9 -8 -7 ------- Run | Jun Mat Mat Mat Fac Traps Triggered 1 | . 1 . . . Indirectly . | . . . . . Trap Hack Attempts . | . . . . . Triggered . | . . . . . Disarmed . | . . . . . Reprogrammed . | . . . . . Reused . | . . . . . Traps Extracted . | . . . . . Installed . | . . . . . Triggered . | . . . . . Machines | -11 -10 -9 -8 -7 ---------- Run | Jun Mat Mat Mat Fac Machines Disabled . | . . . . . Max in Single Turn . | . . . . . Machines Repaired . | . . . . . Machines Sabotaged . | . . . . . Overloaded Fab Kills . | . . . . . Hacking | -11 -10 -9 -8 -7 --------- Run | Jun Mat Mat Mat Fac Machines Accessed 4 | . 1 2 . 1 Terminals 3 | . 1 2 . . Fabricators 1 | . . . . 1 Repair Stations . | . . . . . Recycling Units . | . . . . . Scanalyzers . | . . . . . Garrison Access . | . . . . . Total Hacks 8 | . 1 5 . 2 Successful 4 | . 1 2 . 1 Failed 4 | . . 3 . 1 Catastrophic . | . . . . . Database Lockouts . | . . . . . Manual 6 | . 1 5 . . Terminals 6 | . 1 5 . . Fabricators 2 | . . . . 2 Repair Stations . | . . . . . Recycling Units . | . . . . . Scanalyzers . | . . . . . Garrison Access . | . . . . . Terminal Hacks 3 | . 1 2 . . Zone Layout 3 | . 1 2 . . Fabricator Hacks 1 | . . . . 1 Build 1 | . . . . 1 Repair Station Hacks . | . . . . . Recycling Unit Hacks . | . . . . . Scanalyzer . | . . . . . Garrison Access Hacks . | . . . . . Unauthorized Hacks . | . . . . . Terminals . | . . . . . Fabricators . | . . . . . Repair Stations . | . . . . . Recycling Units . | . . . . . Scanalyzers . | . . . . . Garrison Access . | . . . . . Data Cores Recovered . | . . . . . Used . | . . . . . Hacking Detections 2 | . . 1 . 1 Full Trace Events . | . . . . . Feedback Events . | . . . . . Feedback Blocked . | . . . . . Robot Schematics Acquired . | . . . . . Robots Built . | . . . . . Authchips . | . . . . . Time . | . . . . . Total Robot Build Rating . | . . . . . Part Schematics Acquired . | . . . . . Parts Built 1 | . . . . 1 Authchips . | . . . . . Time 53 | . . . . 53 Total Part Build Rating 6 | . . . . 6 Parts Repaired . | . . . . . Time . | . . . . . Parts Recycled . | . . . . . Recycled Matter . | . . . . . Retrieved Matter . | . . . . . Retrieved Components . | . . . . . Parts Scanalyzed . | . . . . . Part Schematics Acquired . | . . . . . Parts Damaged . | . . . . . Bothacking | -11 -10 -9 -8 -7 ------------ Run | Jun Mat Mat Mat Fac Used RIF Installer . | . . . . . Robots Hacked . | . . . . . Non-combat . | . . . . . Combat . | . . . . . Robot Hacks Applied . | . . . . . Relay Couplers Released . | . . . . . Fabnet Peak Effective % . | . . . . . Robots Rewired . | . . . . . Allies Hacked . | . . . . . Hacks Repelled . | . . . . . Allies | -11 -10 -9 -8 -7 -------- Run | Jun Mat Mat Mat Fac Total Allies . | . . . . . Largest Group . | . . . . . Highest-Rated Group . | . . . . . Highest-Rated Ally . | . . . . . Total Orders 2 | . . . . 2 EXPLORE 2 | . . . . 2 Ally Attacks . | . . . . . Total Damage . | . . . . . Kills . | . . . . . Allies Corrupted . | . . . . . Allies Melted . | . . . . . Intel | -11 -10 -9 -8 -7 ------- Run | Jun Mat Mat Mat Fac Robot Analysis Total . | . . . . . Derelict Logs Recovered . | . . . . . Drone Launches 2 | . . . . 2 Drone Recoveries 1 | . . . . 1 Exploration | -11 -10 -9 -8 -7 ------------- Run | Jun Mat Mat Mat Fac Turns Passed 433 | 9 65 97 123 139 Spaces Moved 652 | 18 120 171 232 111 Core 652 | 18 120 171 232 111 Treads . | . . . . . Legs . | . . . . . Wheels . | . . . . . Hover . | . . . . . Flight . | . . . . . Fastest Speed 50 | 50 50 50 50 50 Average Speed 50 | 50 50 50 50 50 Slowest Speed 50 | 50 50 50 50 50 Overloaded Moves . | . . . . . Propulsion Burnouts . | . . . . . Robots Hopped . | . . . . . Cave-ins Triggered . | . . . . . Exploration Rate (%) 19 | 3 32 30 27 7 Regions Visited 4 Branch Regions . Pre-discovered Areas . | . . . . . Known Exits Taken . | . . . . . Unknown Exits Taken 4 | 1 1 1 1 . Scrap Searched . | . . . . . Spaces Dug . | . . . . . Terrain Destroyed . | . . . . . Melee . | . . . . . Projectile . | . . . . . AOE . | . . . . . Terrain Rammed . | . . . . . Walls Destroyed . | . . . . . Machines Disabled . | . . . . . Actions | -11 -10 -9 -8 -7 --------- Run | Jun Mat Mat Mat Fac Total 754 | 17 124 181 238 194 Wait 81 | . . . . 81 Move 648 | 17 119 170 231 111 Hop . | . . . . . Pick Up 4 | . . 1 2 1 Fast Attach . | . . . . . Attach 1 | . . . . 1 Detach . | . . . . . Swap . | . . . . . Drop . | . . . . . Fire . | . . . . . Melee . | . . . . . Ram 19 | . 5 9 5 . Kick . | . . . . . Crush . | . . . . . Escape Stasis . | . . . . . Rewire 1 | . . 1 . . Trap . | . . . . . Miscellaneous . | . . . . . Route ------- -11/Junkyard -10/Materials (discovered 2 exits: *Mat / [*Min]) -9/Materials (discovered 2 exits: [*Mat] / [*Min]) -8/Materials -7/Factory (discovered 1 exit: [*Low]) History --------- Turn | Location | Event 4 | -11/Junkyard | Discovered new exit (range 13) 10 | -11/Junkyard | Entered Materials 29 | -10/Materials | Discovered new exit (range 16) 67 | -10/Materials | Core integrity fell below 50% 67 | -10/Materials | Discovered new exit (range 13) 75 | -10/Materials | Entered another Materials area 75 | -9/Materials | Evolved 2 slots: Utility x2 129 | -9/Materials | Discovered new exit (range 8) 140 | -9/Materials | Core integrity fell below 50% 164 | -9/Materials | Discovered new exit (range 16) 169 | -9/Materials | Core integrity fell below 20% 172 | -9/Materials | Entered another Materials area 172 | -8/Materials | Evolved 2 slots: Utility x2 284 | -8/Materials | Core integrity fell below 50% 291 | -8/Materials | Discovered new exit (range 9) 295 | -8/Materials | Entered Factory 295 | -7/Factory | Evolved 2 slots: Utility x2 305 | -7/Factory | Build established: Mutant 389 | -7/Factory | Fabricated Adv. Drone Bay (x1) 401 | -7/Factory | Discovered new exit (range 30) 434 | -7/Factory | Self-destructed Last Messages --------------- 00215_ Penetrated by Slug. 00217_ Slammed into T-07 Excavator. 00220_ Slammed into U-05 Engineer. 00284_ Penetrated by Slug. 00291_ EXIT=FOUND 00293_ Slammed into S-10 Pest. PARAMETERS=UTILITY+2 LOCATION=UNKNOWN GOAL=ESCAPE 00317_ ALERT: All DSF locations entering lockdown mode. 00336_ Connecting with Fabricator... 00336_ Current location identified: Factory >>Build Building Adv. Drone Bay... ETC: 53 00389_ Fabricator completes Adv. Drone Bay. 00389_ Acquired Adv. Drone Bay. 00392_ Advanced Drone released from Adv. Drone Bay. 00401_ EXIT=FOUND 00413_ Advanced Drone retrieved by Adv. Drone Bay. Map ----- +----------------------------------------------------+ | | | | | | | | | | | | | | | | | | | | | | | | | | | | | ???????????##############??????????##############? | | ???????????# ! #?????????# #? | | ???????????? """ ]]/ #?????????# " " " " #? | | ???????????# """ ]! #?????????# " " " " #? | | ???????????# """ ]/ #?????????# " " " " !#? | | ???????????# #######???# " " " " #? | | #################+## #???# " " " " ! #? | | ^ ##### " " " " #? | | ^ + " " " " " " #? | | ??""""" """""" """""" ##### " " " " "G" #? | | ??????" """""" """""" "" "" #???# " " " " " #? | | ????????"""""" """""" "F@"" #???# #? | | ????""" """""" """""" """"" #???#######/#######? | | ? #???????# ###### | | ? #???????# # | | ? ############### #???????# # | | ???????# [ [ # ######### + **= | | ???????# """ + # *== | | ???????# """ # ########### # *== | | ???????#! """ ""T"" # ## # ###### | | ???????# """"" # ##"S # #????? | | ???????############## ##""" # #????? | | ???????############## ## "" # #????? | | + + #????? | | ???????############### ### """"" # #????? | | ?????????????????????# #?# """"" [# #????? | | ?????????????????????# #?# """ # ###### | | ?????????????????????# #?# # | | ?????????????????????# ############ | | ???????????????????? + | | ?????????????????????# ######### | | ?????????????????????# #???????# | | ?????????????????????## #???????###########+ | | ??????????????????????# #????????# | | ??????????????????????# ^ ^########## | | ??????????????????????# + | +----------------------------------------------------+ Best States ------------- Heat Dissipation 34 Energy Generation 5 Energy Capacity 100 Matter Stores 223 Matter Capacity 300 Sight Range 16 Terrain Scan Density 10 Evasion (%) 50 Item Schematics ----------------- None Robot Schematics ------------------ None Fabricated ------------ Adv. Drone Bay | x1 | -7/Factory | Preloaded Alien Tech Used ----------------- None Achievements -------------- None Challenges ------------ None Game ------ Seed MolecularSmartbombCalibrator Manual? 0 Play Time 00:06:09 Cumulative 96.1 hours Start 2023.04.12 @ 08:26:32 End 2023.04.12 @ 08:31:29 Sessions 1 Manual Loads 0 Difficulty Rogue Special Mode None Game No. 204 Rogue 204 Adventurer 0 Explorer 0 Win Type - Total 2 Types 2/0/0/0/0/0/0/0/0 Lore% 55 Gallery% 57 Achievement% 46 Wizard Run 0 Options --------- ASCII 0 Keyboard 0 Movement Numpad Keybinds 0 Fullscreen 1 Font 12/Smallcaps Map View 83x54 Tactical HUD 1 Map Filters NONE Filters NONE Steam 1 RUN: 227bcee5-a91e-4211-b6f4-2cd36eec29ad